bitfinex/quotes_ETHUSD_20251201
["timestamp","ask_amount","ask_price","bid_price","bid_amount"]
[1764631921641,0.75972911,2818.3,2817.8,3.54986791]
[1764631921848,0.4683,2817.9,2817.8,0.001]
[1764631922044,1.3991418,2817.9,2817.8,0.001]
[1764631922354,1.5236418,2817.9,2817.8,0.001]
[1764631922736,0.01,2817.9,2817.8,0.9778]
[1764631923193,0.01,2817.9,2817.8,0.4956]
[1764631923708,0.01,2817.9,2817.8,0.9778]
[1764631923872,0.01,2817.9,2817.8,4.52666791]
[1764631924073,0.1097041,2817.9,2817.8,3.54986791]
[1764631924284,0.5780041,2817.9,2817.8,0.001]
[1764631924458,0.1097041,2817.9,2817.8,0.001]
[1764631924655,0.01,2817.9,2817.8,0.4956]
[1764631924861,0.01,2817.9,2817.8,4.52666791]
[1764631925057,0.01,2818.0,2817.8,8.07553582]
[1764631925262,0.578,2818.0,2817.9,0.9768]
[1764631925489,0.01,2818.0,2817.9,0.9768]
[1764631925687,0.568,2818.1,2817.9,0.9768]
[1764631925888,0.568,2818.1,2818.0,3.54861603]
[1764631926089,0.568,2818.1,2818.0,4.52541603]
[1764631928996,0.568,2818.1,2817.8,0.001]
[1764631929296,0.6666,2818.1,2817.8,3.54984238]
[1764631930077,0.3638418,2818.0,2817.8,0.001]
[1764631930463,0.568,2818.1,2817.9,0.9768]
[1764631930668,0.01,2818.6,2818.0,0.4946]
[1764631930891,0.01,2818.6,2818.5,0.4946]
[1764631931097,0.01,2818.6,2818.1,0.6625]
[1764631931098,0.578,2818.6,2818.1,0.6625]
[1764631931298,0.578,2818.6,2818.1,0.6428]
[1764631931791,1.30359411,2818.6,2818.1,0.6428]
[1764631931995,0.5215188,2818.5,2818.1,0.6428]
[1764631932194,0.5215188,2818.5,2818.2,3.5483642]
[1764631932383,0.578,2818.6,2818.2,3.5483642]
[1764631933194,1.79109411,2818.6,2818.1,0.1803]
[1764631933384,4.97721729,2818.6,2818.1,0.1803]
[1764631933588,0.578,2818.6,2818.1,4.19129011]
[1764631933788,0.578,2818.6,2817.8,0.001]
[1764631933789,5.33898897,2818.6,2817.9,0.4625]
[1764631933988,0.3638418,2818.4,2817.9,0.4625]
[1764631934191,1.25949301,2818.5,2817.9,0.4625]
[1764631934192,0.568,2818.3,2818.0,3.54861603]
[1764631934574,0.568,2818.3,2818.2,0.6477]
[1764631934770,0.578,2818.3,2818.2,0.6477]
[1764631934971,0.578,2818.3,2818.2,0.4661]
[1764631935306,0.6735,2818.3,2817.9,3.54968252]
[1764631935600,0.6735,2818.3,2817.9,4.01218252]
[1764631935897,0.6735,2818.3,2817.9,0.4635]
[1764631936101,0.42217201,2818.2,2817.9,4.01223129]
[1764631936402,0.3638418,2818.2,2817.9,0.4635]
[1764631936703,0.9418418,2818.3,2818.1,0.4661]
[1764631937032,0.578,2818.3,2818.1,0.4661]
[1764631937472,0.3638418,2818.1,2817.9,0.001]
[1764631938072,0.3638418,2818.2,2817.9,0.001]
[1764631938372,0.49697243,2818.2,2817.9,0.001]
[1764631938998,0.86081423,2818.2,2817.9,0.001]
[1764631939197,0.49697243,2818.2,2817.9,0.001]
[1764631939392,0.8446418,2818.0,2817.9,0.001]
[1764631939702,0.3638418,2818.2,2817.9,0.001]
[1764631939900,0.578,2818.3,2818.0,0.4619]
[1764631940091,0.3638418,2818.1,2818.0,0.4619]
[1764631940292,0.41261359,2818.2,2818.0,0.4619]
[1764631940469,0.01,2818.3,2818.1,1.1162]
[1764631940674,0.01,2818.3,2818.2,0.4619]
[1764631940893,0.01,2818.3,2818.2,0.9165]
[1764631941092,0.01,2819.0,2818.3,0.405504]
[1764631941296,0.567,2819.3,2818.9,0.4619]
[1764631941794,0.54581489,2819.3,2818.9,0.9165]
[1764631942780,0.54581489,2819.3,2818.3,0.405504]
[1764631942781,0.90965669,2819.3,2818.5,3.54798651]
[1764631942985,0.3638418,2819.1,2818.5,7.09597302]
[1764631943178,0.3638418,2819.1,2818.6,0.4546]
[1764631943377,0.01,2819.2,2818.6,0.4546]
[1764631943601,0.3738418,2819.2,2818.6,0.4546]
[1764631944398,0.01,2819.2,2818.6,0.4546]
[1764631944598,0.19940821,2818.8,2818.4,3.54804139]
[1764631944797,0.567,2818.7,2818.4,3.54804139]
[1764631945108,0.567,2818.7,2818.5,0.4546]
[1764631945307,0.567,2818.7,2818.6,0.4619]
[1764631945686,0.567,2818.7,2818.6,0.9165]
[1764631946087,0.01,2819.2,2818.6,0.9165]
[1764631946286,0.567,2819.1,2819.0,0.4619]
[1764631946497,0.577,2819.1,2819.0,0.4619]
[1764631947104,0.577,2819.1,2818.7,4.0022654]
[1764631947289,0.01,2819.1,2819.0,0.4619]
[1764631947487,0.577,2819.1,2819.0,0.4619]
[1764631948511,1.30259411,2819.1,2818.6,3.54786064]
[1764631948713,0.01,2819.1,2819.0,0.4619]
[1764631949095,0.01,2819.1,2819.0,0.9165]
[1764631949483,0.567,2819.5,2819.0,0.9165]
[1764631949687,0.567,2819.5,2819.4,0.4619]
[1764631950303,0.01,2819.5,2819.4,0.4619]
[1764631950613,0.72559411,2819.7,2819.4,0.4619]
[1764631950800,0.01,2819.6,2819.4,4.00145394]
[1764631951004,0.01,2819.6,2819.4,7.54830788]
[1764631951209,0.01,2819.6,2819.5,0.9165]
[1764631952706,0.01,2819.6,2819.5,4.46322814]
[1764631953004,0.01,2819.9,2819.5,8.81096424]
[1764631953210,0.01,2819.9,2819.6,0.4546]
[1764631953410,0.01,2819.9,2819.8,0.4619]
[1764631953791,0.012,2819.9,2819.8,0.9165]
[1764631954690,0.012,2819.9,2819.8,4.0082508]
[1764631954891,0.012,2819.9,2819.8,0.4619]
[1764631955205,0.1712,2819.9,2819.3,0.4546]
[1764631955408,0.1712,2819.9,2819.2,7.09421112]
[1764631955609,0.1712,2819.9,2819.4,0.4546]
[1764631955915,0.567,2819.8,2819.4,0.4546]
[1764631956414,0.567,2819.8,2819.7,0.4973]
[1764631956992,0.567,2819.8,2819.5,3.54672814]
[1764631957396,0.567,2819.8,2819.5,4.00202814]
[1764631957614,0.567,2819.8,2819.5,0.4553]
[1764631958324,0.567,2819.8,2819.7,0.4973]
[1764631959548,0.012,2819.9,2819.7,4.04369637]
[1764631959818,0.566,2819.8,2819.7,4.00169637]
[1764631960201,0.566,2819.8,2819.7,0.9526]
[1764631961497,0.576,2819.8,2819.7,0.9526]
[1764631961693,0.576,2819.8,2819.7,0.4973]
[1764631962612,0.576,2819.8,2819.7,4.04377657]
[1764631963220,0.576,2819.8,2819.7,0.4973]
[1764631963424,0.7223,2819.8,2819.5,3.54672341]
[1764631963624,0.4593,2819.6,2819.3,3.54697974]
[1764631963925,0.0016,2819.5,2819.3,3.54697974]
[1764631964224,1.0207,2819.4,2818.8,3.54760891]
[1764631964528,1.0207,2819.4,2818.8,7.57751782]
[1764631964529,0.01,2819.3,2818.8,7.57751782]
[1764631964722,0.1782,2819.3,2818.4,0.4823]
[1764631965030,0.0017,2818.9,2818.4,0.4823]
[1764631965218,0.0017,2818.9,2818.5,7.09597302]
[1764631965600,0.0017,2818.9,2818.5,7.57827302]
[1764631965905,0.3638418,2819.1,2818.6,0.4823]
[1764631966109,3.72525971,2819.3,2818.6,0.4823]
[1764631966110,0.3638418,2819.2,2818.6,0.4823]
[1764631966300,0.79296777,2819.2,2818.6,0.4823]
[1764631966702,1.27276777,2819.2,2818.5,3.54798651]
[1764631967122,0.4798,2819.1,2818.5,3.54798651]
[1764631967320,0.566,2819.2,2819.1,0.4758]
[1764631967508,0.566,2819.2,2818.6,0.4823]
[1764631967705,0.3638418,2819.1,2818.7,3.54773477]
[1764631967909,1.82192743,2819.2,2818.7,3.54773477]
[1764631968228,1.4096418,2819.2,2818.7,3.54773477]
[1764631968602,4.95676387,2819.2,2818.6,3.54779923]
[1764631969207,1.0458,2819.2,2818.6,7.09565987]
[1764631969443,0.566,2819.2,2819.1,0.4758]
[1764631969827,0.7094,2819.2,2818.8,3.54760891]
[1764631970341,0.01,2819.1,2818.8,3.54760891]
[1764631971033,0.01,2819.1,2818.8,4.02990891]
[1764631971236,0.01,2819.1,2819.0,0.4758]
[1764631971612,0.01,2819.1,2819.0,0.9581]
[1764631971812,0.01,2819.1,2819.0,4.50545721]
[1764631972002,0.01,2819.1,2819.0,4.02315721]
[1764631973219,0.01,2819.1,2819.0,4.50545721]
[1764631976236,0.01,2819.3,2819.0,4.50545721]
[1764631976746,0.01,2819.3,2819.2,0.4758]
[1764631977549,0.01,2819.3,2819.2,0.9581]
[1764631978136,0.01,2819.3,2819.2,1.78160144]
[1764631978443,0.01,2819.3,2819.2,4.50520556]
[1764631979615,0.01,2819.3,2819.2,4.02290556]
[1764631980332,0.1534,2819.3,2819.0,0.72559411]
[1764631980511,0.1534,2819.3,2819.0,7.82022151]
[1764631980711,0.01,2819.3,2819.2,0.4758]
[1764631981935,0.01,2819.5,2819.2,0.9581]
[1764631982141,0.01,2819.5,2819.2,0.4823]
[1764631982326,0.01,2819.5,2819.4,0.4758]
[1764631982512,0.01,2819.7,2819.4,0.4758]
[1764631982714,0.01,2819.7,2819.5,0.4823]
[1764631982914,0.01,2819.7,2819.6,0.4758]
[1764631983147,0.01,2819.7,2819.6,0.9581]
[1764631983351,0.01,2819.7,2819.6,1.8358402]
[1764631984546,0.01,2819.7,2819.6,0.4758]
[1764631984743,0.01,2819.7,2819.6,4.74799646]
[1764631988019,0.1445,2819.7,2819.3,3.54687246]
[1764631988358,0.0048,2819.6,2819.3,3.54687246]
[1764631990359,0.0048,2819.6,2819.3,4.02917246]
[1764631990855,0.1303,2819.4,2819.3,3.54787246]
[1764631991222,0.4798,2819.6,2819.3,3.54787246]
[1764631991424,0.012,2819.7,2819.3,3.54787246]
[1764631991856,0.5087,2819.7,2819.3,3.54787246]
[1764631992836,0.5087,2819.7,2819.3,0.001]
[1764631993750,0.012,2819.7,2819.3,0.4936]
[1764631994828,3.55848605,2819.7,2819.3,0.4936]
[1764631995043,4.89126601,2819.7,2819.3,0.001]
[1764631995337,4.39456601,2819.7,2819.3,0.001]
[1764631995528,4.89126601,2819.7,2819.3,0.001]
[1764631995728,0.1183,2819.4,2819.3,0.001]
[1764631995950,0.1283,2819.4,2819.3,0.001]
[1764631996142,0.9850418,2819.4,2819.3,0.001]
[1764631996543,0.0997041,2819.1,2818.8,0.001]
[1764631996744,0.5545418,2818.9,2818.8,0.001]
[1764631996964,4.10202486,2818.9,2818.8,0.001]
[1764631997131,4.59872486,2818.9,2818.8,0.001]
[1764631997329,5.47083346,2818.9,2818.8,0.001]
[1764632000161,5.48083346,2818.9,2818.8,0.001]
[1764632000847,6.04583346,2818.9,2818.8,0.001]
[1764632002444,6.77142757,2818.9,2818.8,0.001]
[1764632003759,5.48083346,2818.9,2818.8,0.001]
[1764632003962,6.04583346,2818.9,2818.8,0.001]
[1764632004547,7.17693157,2818.9,2818.8,0.001]
[1764632006264,0.405504,2818.8,2818.1,0.001]
[1764632006464,0.4714418,2818.2,2818.1,0.001]
[1764632006668,1.5431418,2818.2,2818.1,0.001]
[1764632008346,5.091506,2818.2,2818.1,0.001]
[1764632009477,3.6698642,2818.2,2818.1,0.001]
[1764632009676,0.01,2818.2,2818.1,1.1417]
[1764632010247,0.3638418,2818.5,2818.2,0.4926]
[1764632010652,0.3638418,2818.5,2818.4,0.4645]
[1764632011054,0.9288418,2818.6,2818.4,0.4645]
[1764632011250,0.9288418,2818.6,2818.5,0.4645]
[1764632011781,4.47670244,2818.6,2818.2,0.4926]
[1764632011981,8.26226308,2818.6,2818.2,0.4926]
[1764632013484,9.08848939,2818.6,2818.1,0.1846]
[1764632013685,3.91197666,2818.4,2818.1,0.001]
[1764632014369,0.3638418,2818.3,2818.1,0.001]
[1764632014558,0.565,2818.2,2818.1,0.001]
[1764632014881,0.9288418,2818.2,2818.1,0.001]
[1764632015771,1.1713418,2818.2,2818.1,0.001]
[1764632015973,4.719706,2818.2,2818.1,0.001]
[1764632017155,6.035901,2818.2,2818.1,0.001]
[1764632017558,5.546501,2818.2,2818.1,0.001]
[1764632017884,5.546501,2818.2,2818.1,0.4978]
[1764632017885,0.9288418,2818.2,2818.1,0.4978]
[1764632018080,4.477206,2818.2,2818.1,0.4978]
[1764632019188,4.477206,2818.2,2818.1,0.001]
[1764632020788,0.565,2818.2,2818.1,1.1571]
[1764632021088,0.565,2818.3,2818.1,1.1571]
[1764632021383,0.565,2818.3,2818.2,0.9649]
[1764632022392,0.565,2818.5,2818.2,0.9649]
[1764632022593,0.565,2818.5,2818.3,0.49]
[1764632022789,0.565,2818.5,2818.4,0.4863]
[1764632023160,0.565,2818.5,2818.4,0.9763]
[1764632023867,4.11298651,2818.5,2818.4,0.9763]
[1764632024062,3.54798651,2818.5,2818.4,0.9763]
[1764632024304,0.3638418,2818.7,2818.4,0.9763]
[1764632024469,0.565,2818.6,2818.5,0.49]
[1764632024669,0.565,2818.6,2818.2,3.54836218]
[1764632024670,0.565,2818.6,2818.2,0.49]
[1764632024902,0.565,2818.6,2818.5,0.4863]
[1764632025088,4.11286064,2818.6,2818.5,0.4863]
[1764632025287,4.47670244,2818.6,2818.5,0.4863]
[1764632026097,0.9288418,2818.6,2818.5,0.4863]
[1764632026286,0.3638418,2818.5,2818.1,0.1922]
[1764632026492,3.91184224,2818.5,2818.2,0.49]
[1764632026870,0.3638418,2818.5,2818.4,0.4863]
[1764632027096,3.54757149,2818.9,2818.4,0.4863]
[1764632027296,0.565,2818.6,2818.5,0.49]
[1764632027767,0.565,2818.6,2818.5,0.9763]
[1764632028770,0.3638418,2819.0,2818.5,0.9763]
[1764632028973,0.565,2818.9,2818.5,0.9763]
[1764632029169,1.10964709,2819.0,2818.5,0.9763]
[1764632029374,0.565,2818.9,2818.5,0.9763]
[1764632029600,0.002,2818.6,2818.5,0.9763]
[1764632033602,0.002,2818.6,2818.5,0.4863]
[1764632034503,0.002,2818.6,2818.1,0.1922]
[1764632034504,0.257,2818.6,2818.1,1.40779411]
[1764632034674,0.257,2818.6,2818.2,0.49]
[1764632034880,0.739,2818.6,2818.1,0.1922]
[1764632035205,4.11302055,2818.5,2818.1,0.1922]
[1764632035376,4.11302055,2818.5,2818.1,0.6822]
[1764632037376,0.565,2818.5,2818.4,0.4863]
[1764632037804,0.565,2818.5,2818.4,0.9763]
[1764632039007,0.002,2818.6,2818.4,0.9763]
[1764632039213,0.002,2818.6,2818.5,0.4863]
[1764632039510,0.567,2818.6,2818.5,0.4863]
[1764632039816,1.01485776,2818.6,2818.5,0.4863]
[1764632040780,4.5627184,2818.6,2818.5,0.4863]
[1764632040993,3.9977184,2818.6,2818.5,0.4863]
[1764632041288,5.3970602,2818.6,2818.1,0.1922]
[1764632041489,5.3970602,2818.6,2818.2,0.49]
[1764632041902,5.3970602,2818.6,2818.1,0.1901]
[1764632041903,1.25832817,2818.5,2818.1,0.1901]
[1764632042223,1.25832817,2818.5,2818.2,0.49]
[1764632042386,0.89448637,2818.5,2818.2,0.49]
[1764632042717,4.47870244,2818.6,2818.2,0.49]
[1764632043211,0.3638418,2818.5,2818.1,0.1901]
[1764632043410,3.5481124,2818.4,2818.1,0.1901]
[1764632043611,0.255,2818.2,2818.1,0.001]
[1764632043812,0.6188418,2818.2,2818.1,0.001]
[1764632044214,3.91188929,2818.5,2818.1,0.9773]
[1764632044388,3.91188929,2818.5,2818.1,1.1664]
[1764632045118,3.91188929,2818.5,2818.1,0.6764]
[1764632045315,3.91188929,2818.5,2818.1,0.4873]
[1764632045316,5.19886568,2818.5,2818.1,0.4873]
[1764632045611,4.71456568,2818.5,2818.1,0.9773]
[1764632046209,4.71456568,2818.5,2818.1,1.1664]
[1764632046410,4.71456568,2818.5,2818.1,0.6764]
[1764632046606,4.71456568,2818.5,2818.2,0.49]
[1764632046786,4.71456568,2818.5,2818.1,0.6764]
[1764632046992,4.71456568,2818.5,2818.1,1.1664]
[1764632047720,0.88294395,2818.4,2818.1,0.4873]
[1764632048324,0.4705,2818.2,2818.1,0.001]
[1764632048621,1.0355,2818.2,2818.1,0.001]
[1764632048797,1.8867562,2818.2,2818.1,0.001]
[1764632050020,5.4351204,2818.2,2818.1,0.001]
[1764632052124,0.405504,2818.1,2818.0,0.001]
[1764632052328,9.04587999,2818.1,2818.0,0.001]
[1764632052492,11.09333672,2818.1,2818.0,0.001]
[1764632054424,14.64182683,2818.1,2818.0,0.001]
[1764632054995,0.7744458,2817.9,2817.6,0.001]
[1764632055298,0.412804,2817.6,2816.0,0.001]
[1764632055494,0.3638418,2816.3,2816.0,0.001]
[1764632055740,0.565,2816.2,2816.0,0.001]
[1764632055895,0.9288418,2816.2,2816.0,0.001]
[1764632056328,4.47972849,2816.2,2816.0,0.001]
[1764632056733,8.03061518,2816.2,2816.0,0.001]
[1764632056895,0.565,2816.2,2816.0,0.001]
[1764632057100,4.47972979,2816.2,2816.1,0.4716]
[1764632057300,4.47972979,2816.2,2816.0,0.001]
[1764632057500,4.47972979,2816.2,2816.1,0.4716]
[1764632057924,4.47972979,2816.2,2816.0,0.001]
[1764632058133,0.2563,2816.1,2816.0,0.001]
[1764632058310,5.38534617,2816.1,2816.0,0.001]
[1764632058631,12.84819025,2816.1,2816.0,0.001]
[1764632059332,1.13109811,2816.0,2814.1,0.1916]
[1764632059535,0.405504,2815.7,2814.4,0.4678]
[1764632059701,0.3638418,2814.9,2814.4,0.4678]
[1764632060047,0.565,2814.8,2814.4,0.4678]
[1764632060398,0.565,2814.8,2814.7,0.4716]
[1764632060794,0.565,2814.8,2814.7,0.9384]
[1764632061006,0.565,2814.8,2814.7,0.4716]
[1764632061211,0.565,2814.8,2814.4,0.001]
[1764632061212,0.0997041,2814.5,2814.4,0.001]
[1764632061411,0.3518041,2814.5,2814.4,0.001]
[1764632062212,3.9165294,2814.8,2814.4,0.4726]
[1764632062413,4.11778033,2814.7,2814.4,0.4726]
[1764632062632,0.4703418,2814.5,2814.4,0.001]
[1764632062830,1.33314205,2814.5,2814.4,0.001]
[1764632063745,1.82024205,2814.5,2814.4,0.001]
[1764632064051,1.33314205,2814.5,2814.4,0.001]
[1764632064747,5.373271,2814.5,2814.4,0.001]
[1764632064918,5.83472741,2814.5,2814.4,0.001]
[1764632065114,6.24023141,2814.5,2814.4,0.001]
[1764632066521,6.80523141,2814.5,2814.4,0.001]
[1764632067226,13.86257149,2814.5,2814.4,0.001]
[1764632068920,6.28957427,2814.0,2813.8,0.001]
[1764632069257,2.75273991,2813.9,2813.8,0.001]
[1764632069554,4.15633991,2813.9,2813.8,0.001]
[1764632069722,0.7693458,2813.6,2812.9,0.001]
[1764632070053,0.7693458,2813.4,2812.9,0.001]
[1764632070253,3.67247449,2813.4,2812.9,0.001]
[1764632070573,1.49493991,2813.3,2812.9,0.001]
[1764632070721,1.98673991,2813.3,2812.9,0.001]
[1764632070921,5.54128439,2813.3,2812.9,0.001]
[1764632071116,7.0083503,2813.3,2812.9,0.001]
[1764632072050,0.14255091,2813.6,2813.2,0.9789]
[1764632072351,0.3638418,2813.3,2813.2,0.4977]
[1764632072566,1.29059411,2813.5,2813.2,0.9789]
[1764632072768,0.565,2813.5,2813.2,0.9789]
[1764632072922,1.65443591,2813.5,2813.2,0.9789]
[1764632073126,5.20884661,2813.5,2813.2,0.9789]
[1764632073938,4.64384661,2813.5,2813.2,0.9789]
[1764632074155,0.565,2813.4,2813.2,0.9789]
[1764632074457,0.83991987,2813.4,2813.2,0.9789]
[1764632074753,3.9182525,2813.5,2813.3,0.4967]
[1764632074955,1.0558418,2813.3,2813.2,0.001]
[1764632075253,6.31324832,2813.3,2813.2,0.001]
[1764632075452,7.14289012,2813.3,2813.2,0.001]
[1764632078352,13.78304947,2813.3,2813.2,0.001]
[1764632078541,6.57789012,2813.3,2813.2,0.001]
[1764632078850,5.57958612,2813.3,2813.2,0.001]
[1764632079147,6.55009012,2813.3,2813.2,0.001]
[1764632079352,6.27498612,2813.3,2813.2,0.001]
[1764632079551,6.55009012,2813.3,2813.2,0.001]
[1764632079738,6.55109012,2813.3,2813.2,0.001]
[1764632079954,6.67809012,2813.3,2813.2,0.001]
[1764632080177,6.55109012,2813.3,2813.2,0.001]
[1764632080528,4.85399201,2813.3,2813.2,0.001]
[1764632080753,5.82549601,2813.3,2813.2,0.001]
[1764632081760,1.50160573,2813.3,2813.2,0.9543]
[1764632081928,4.48438628,2813.3,2813.2,0.9543]
[1764632082753,5.74288439,2813.3,2813.2,0.001]
[1764632082958,6.21028439,2813.3,2813.2,0.001]
[1764632083360,5.25364259,2813.3,2813.2,0.001]
[1764632083560,6.54892952,2813.3,2813.2,0.001]
[1764632083756,6.11172952,2813.3,2813.2,0.001]
[1764632083957,7.14172952,2813.3,2813.2,0.001]
[1764632084141,6.67772952,2813.3,2813.2,0.001]
[1764632084664,6.54892952,2813.3,2813.2,0.001]
[1764632084847,0.3658418,2813.3,2813.2,0.4726]
[1764632085166,4.48638628,2813.3,2813.2,0.4726]
[1764632085548,4.48638628,2813.3,2813.2,0.001]
[1764632087063,4.48638628,2813.3,2813.2,0.4726]
[1764632087265,4.48638628,2813.3,2813.2,0.9543]
[1764632087459,4.48638628,2813.3,2813.2,0.4726]
[1764632090372,0.002,2813.3,2813.2,4.50897083]
[1764632090528,0.002,2813.3,2813.2,1.42386708]
[1764632090953,0.002,2813.3,2813.2,0.9543]
[1764632091431,0.568,2813.3,2813.2,0.9543]
[1764632096468,0.568,2813.3,2813.2,4.50897083]
[1764632096665,0.568,2813.3,2813.2,0.9543]
[1764632097269,0.002,2813.3,2813.2,4.50897083]
[1764632097438,0.568,2813.3,2813.2,4.50897083]
[1764632097835,0.002,2813.3,2813.2,4.50897083]
[1764632098173,0.002,2813.3,2813.2,5.33401679]
[1764632099866,0.002,2813.3,2813.2,6.0596109]
[1764632100681,0.002,2813.3,2813.2,5.23456494]
[1764632100877,0.002,2813.6,2813.3,0.72559411]
[1764632101179,0.002,2813.6,2813.5,7.83735346]
[1764632101348,0.002,2813.9,2813.6,0.72559411]
[1764632101545,0.002,2813.9,2813.8,0.4716]
[1764632102072,0.002,2813.9,2813.8,0.9533]
[1764632102870,0.002,2813.9,2813.8,4.50721285]
[1764632109482,0.002,2813.9,2813.8,5.23280696]
[1764632110283,3.55163047,2815.7,2813.9,0.72559411]
[1764632110458,6.9209,2815.8,2815.0,0.1847]
[1764632110778,0.565,2815.7,2815.0,0.1847]
[1764632110978,0.565,2815.7,2815.1,0.4817]
[1764632111278,0.73788418,2815.6,2815.1,0.4817]
[1764632111577,6.45,2815.8,2815.6,0.4657]
[1764632111781,0.565,2815.8,2815.7,0.4657]
[1764632112348,0.565,2815.8,2815.2,7.10429098]
[1764632112554,0.565,2815.8,2815.2,7.58019098]
[1764632112885,0.565,2815.8,2815.2,7.10429098]
[1764632113186,0.565,2815.8,2815.3,0.4759]
[1764632113552,0.565,2815.8,2815.4,7.1037863]
[1764632113750,0.565,2815.8,2815.7,0.4657]
[1764632113952,0.002,2816.0,2815.7,0.4657]
[1764632114182,0.002,2816.0,2815.9,0.4657]
[1764632114379,0.002,2816.0,2815.4,0.72559411]
[1764632114582,0.002,2816.0,2815.5,0.4759]
[1764632114782,0.567,2816.0,2815.9,0.4657]
[1764632115984,0.567,2816.0,2814.9,4.1174555]
[1764632115985,1.1718,2816.0,2815.1,3.55227167]
[1764632116175,0.3392,2815.9,2815.1,3.55227167]
[1764632116369,0.52790265,2815.8,2815.1,7.10454334]
[1764632116570,0.52790265,2815.8,2815.1,7.58044334]
[1764632116954,0.52990265,2815.8,2815.1,7.58044334]
[1764632119387,0.52990265,2815.8,2815.2,0.4759]
[1764632120372,0.52990265,2815.8,2815.3,3.55201932]
[1764632120778,0.4420386,2815.7,2815.3,4.02791932]
[1764632120956,0.9080386,2815.7,2815.1,3.55223792]
[1764632121366,1.2718804,2815.7,2815.1,3.55223792]
[1764632121558,0.4420386,2815.7,2815.1,7.58040959]
[1764632121891,0.002,2815.8,2815.2,0.4759]
[1764632122259,0.002,2815.8,2815.7,0.4657]
[1764632122583,0.567,2815.8,2815.7,4.01721472]
[1764632123999,0.405504,2815.5,2814.0,0.1847]
[1764632124311,0.3303,2814.1,2813.5,4.03118052]
[1764632124459,0.565,2814.1,2813.5,4.78984004]
[1764632124660,0.565,2814.1,2814.0,0.4657]
[1764632125261,0.565,2814.1,2814.0,0.9416]
[1764632126062,0.565,2814.1,2814.0,0.4657]
[1764632127369,0.565,2814.1,2813.8,3.5538679]
[1764632127576,0.565,2814.1,2814.0,0.4657]
[1764632128083,0.565,2814.1,2813.9,3.55378655]
[1764632128492,0.565,2814.1,2813.7,4.27963327]
[1764632128793,0.565,2814.1,2813.8,0.4759]
[1764632130092,0.466,2814.6,2814.0,0.4657]
[1764632130289,0.565,2814.5,2814.0,0.4657]
[1764632130488,0.565,2814.4,2814.2,3.55340771]
[1764632130677,0.76729472,2814.8,2814.4,0.4656]
[1764632130878,0.565,2814.7,2814.4,0.4656]
[1764632131075,0.40345292,2814.8,2814.4,0.4656]
[1764632131393,0.565,2814.7,2814.4,0.4656]
[1764632131967,0.565,2814.7,2814.2,3.55340771]
[1764632132169,1.047,2814.7,2814.2,3.55340771]
[1764632132909,1.047,2814.7,2814.1,4.21161502]
[1764632133122,0.3638418,2814.5,2814.1,4.21161502]
[1764632133282,0.3638418,2814.6,2814.1,4.21161502]
[1764632134898,1.047,2814.7,2814.1,4.21161502]
[1764632134899,1.047,2814.7,2814.1,7.765149]
[1764632135097,0.565,2814.7,2814.6,0.4656]
[1764632135568,0.3638418,2815.2,2814.6,0.9343]
[1764632135767,0.565,2815.1,2814.6,0.9343]
[1764632136183,1.047,2815.1,2814.6,0.4656]
[1764632136368,1.047,2815.1,2814.3,0.4687]
[1764632136592,2.26233595,2815.1,2814.3,0.4687]
[1764632136794,0.3638418,2814.8,2814.3,0.4687]
[1764632137385,0.3638418,2814.8,2814.4,3.5531552]
[1764632137708,0.565,2814.7,2814.4,3.5531552]
[1764632138222,0.565,2814.9,2814.6,0.4656]
[1764632138506,0.3638418,2815.6,2814.8,0.4656]
[1764632138703,0.565,2815.5,2814.8,0.4656]
[1764632138891,0.565,2815.5,2814.8,0.9343]
[1764632139484,0.565,2815.5,2814.9,3.55252406]
[1764632139743,0.565,2815.4,2814.9,8.37769158]
[1764632140119,0.565,2815.4,2815.0,0.4687]
[1764632140282,0.482,2815.6,2815.0,0.4687]
[1764632140482,0.9288418,2815.5,2815.1,0.1894]
[1764632140682,0.3638418,2815.6,2815.0,0.4687]
[1764632140895,0.565,2815.4,2815.0,0.4687]
[1764632141300,0.565,2815.4,2814.9,4.35646752]
[1764632141498,0.565,2815.4,2814.9,4.81516752]
[1764632143383,0.565,2815.4,2815.0,0.85572088]
[1764632143584,0.565,2815.4,2815.0,8.41910439]
[1764632143779,0.565,2815.4,2815.1,0.4587]
[1764632143984,0.565,2815.3,2815.1,0.4587]
[1764632144184,0.565,2815.3,2815.0,3.55228565]
[1764632144385,0.565,2815.3,2814.9,3.55250212]
[1764632144912,0.565,2815.3,2814.9,4.01120212]
[1764632145113,0.9288418,2815.3,2814.9,4.01120212]
[1764632145411,0.565,2815.3,2814.9,4.78652673]
[1764632146081,0.565,2815.3,2814.9,8.33905079]
[1764632146282,0.565,2815.3,2815.2,0.4616]
[1764632147314,0.565,2815.3,2815.0,0.4587]
[1764632147685,0.565,2815.3,2815.2,0.4616]
[1764632148496,0.565,2815.3,2815.2,0.9203]
[1764632148985,0.565,2815.3,2815.2,0.4616]
[1764632149312,0.565,2815.3,2815.0,3.55234742]
[1764632149813,0.565,2815.3,2815.2,0.4616]
[1764632150015,0.002,2815.7,2815.2,0.4616]
[1764632150191,0.002,2815.7,2815.6,0.4616]
[1764632150392,0.002,2815.7,2815.3,0.4587]
[1764632150596,0.567,2815.7,2815.3,0.4587]